Cogmind - Beta 16 @@@ ROGUE MODE // 2025.10.25 @ 12:45:13 // Winter2019/RPGLIKE Player: Fellun Result: Destroyed by RV-R5O(R) with Subdweller Machine Gun Performance ------------- Evolutions (0) 0 Regions Visited (3) 600 Robots Destroyed (13) 65 Value Destroyed (497) 497 Prototype IDs (12) 240 Alien Tech Used (0) 0 Bonus (60) 60 TOTAL SCORE: 1462 Bonus ------- Follower Combat Kills 60 Cogmind --------- Core Integrity 0/700 Matter 255/300 Energy 150/150 System Corruption 0% Temperature Cool (0) Movement Rolling (80) Location -10/Subcaves Parts ------- > --- POWER (2) -------- Light Ion Engine Light Ion Engine > --- PROPULSION (2) --- Wheel Wheel > --- UTILITY (3) ------ Signal Interpreter Light Armor Plating Hacking Suite > --- WEAPON (2) ------- Light Assault Rifle Barrage Gun > --- INVENTORY (2) ---- Tower Shield Peak State ------------ > --- POWER ------------ Light Ion Engine Light Ion Engine > --- PROPULSION ------- Wheel Wheel > --- UTILITY ---------- Signal Interpreter Light Armor Plating Hacking Suite > --- WEAPON ----------- Light Assault Rifle Barrage Gun > --- INVENTORY -------- Tower Shield [Rating: 15] Favorites ----------- Power Light Ion Engine Engine Light Ion Engine Propulsion Wheel Wheel Wheel Utility Hacking Suite Storage High-capacity Matter Pod Processor Signal Interpreter Hackware Hacking Suite Protection Light Armor Plating Weapon Light Assault Rifle Energy Gun EM Pulse Gun Ballistic Gun Light Assault Rifle Build | -11 -10 -10 -10 ------- Run | Yrd Mat Min Sub Slots Evolved 5 | 4 . . 1 Power 1 | 1 . . . Propulsion 1 | 1 . . . Utility 2 | 1 . . 1 Weapon 1 | 1 . . . Parts Attached 12 | 6 4 . 2 Power 3 | 2 1 . . Engine 3 | 2 1 . . Core . | . . . . Reactor . | . . . . Propulsion 2 | 2 . . . Treads . | . . . . Leg . | . . . . Wheel 2 | 2 . . . Hover . | . . . . Flight . | . . . . Utility 4 | . 3 . 1 Device . | . . . . Storage 1 | . 1 . . Processor 1 | . 1 . . Hackware 1 | . 1 . . Protection 1 | . . . 1 Artifact . | . . . . Weapon 3 | 2 . . 1 Energy Gun 1 | 1 . . . Energy Cannon . | . . . . Ballistic Gun 2 | 1 . . 1 Ballistic Cannon . | . . . . Launcher . | . . . . Special Weapon . | . . . . Impact Weapon . | . . . . Slashing Weapon . | . . . . Piercing Weapon . | . . . . Special Melee Weapon . | . . . . Unidentified Prototypes . | . . . . Parts Lost . | . . . . Power . | . . . . Propulsion . | . . . . Utility . | . . . . Weapon . | . . . . Highest Loss Streak . | . . . . To Critical Strikes . | . . . . Average Backups . | . . 1 . Power . | . . . . Propulsion . | . . . . Utility . | . . 1 . Weapon . | . . . . Tool/Special . | . . . . Unused Backups 1 | . . . 1 Power . | . . . . Propulsion . | . . . . Utility 1 | . . . 1 Weapon . | . . . . Tool/Special . | . . . . Average Slot Usage (%) 99 | . 96 100 99 Engine 23 | . 25 25 22 Wheel 23 | . 25 25 22 Processor 11 | . 6 12 11 Hackware 11 | . 9 12 11 Protection 4 | . . . 9 Energy Gun 7 | . 12 12 3 Ballistic Gun 15 | . 12 12 18 Peak Build Rating 15 | 6 10 10 15 Average Rating 11 | 4 9 10 13 On Entrance 6 | . 6 10 10 Avg Prop Armor Cover (%) . | . . . . Naked Turns . | . . . . Heaviest Build 15 | 11 15 9 13 Greatest Support 20 | 20 20 20 20 Greatest Overweight (x) . | . . . . Average Overweight (x) . | . . . . Largest Inventory Capacity 2 | 1 1 1 2 Average Capacity 1 | . 1 1 1 Most Carried 2 | . 1 1 2 Average Carried 1 | . . 1 1 Final Capacity 2 | 1 1 1 2 Final Carried 2 | . 1 1 2 Class Distribution -------------------- 100% | Mutant Dominant Class ---------------- Mutant | -10/Materials Mutant | -10/Mines Mutant | -10/Subcaves Resources | -11 -10 -10 -10 ----------- Run | Yrd Mat Min Sub Matter Collected 526 | 109 24 175 218 Remotely . | . . . . Salvage Created 658 | . 69 156 433 Parts 34 | . 4 8 22 Haulers Intercepted . | . . . . Recyclers Shooed . | . . . . Parts Field Recycled . | . . . . Retrieved Matter . | . . . . Parts Self-Destructed 4 | . . . 4 Prevented . | . . . . Parts Restored . | . . . . Kills | -11 -10 -10 -10 ------- Run | Yrd Mat Min Sub Combat Hostiles Destroyed 11 | . . 2 9 Guns 10 | . . 2 8 AOE 1 | . . . 1 Classes Destroyed 4 | . 2 1 1 Operator 1 | . 1 . . Watcher 1 | . 1 . . Sentry 3 | . . 2 1 Subdweller 8 | . . . 8 Best Kill Streak 2 | . 1 2 2 Combat Bots Only 2 | . . 2 2 Max Kills in Single Turn 1 | . 1 1 1 Gunslinging . | . . . . Exploded 1 | . . . 1 Melee . | . . . . Uniques/NPCs Destroyed . | . . . . Combat | -11 -10 -10 -10 -------- Run | Yrd Mat Min Sub Hostile Shots Fired 72 | . . 8 64 Missed 22 | . . 4 18 Hits 50 | . . 4 46 Projectile 50 | . . 4 46 AOE 2 | . . . 2 Damage Taken 1031 | . . 55 976 Core 790 | . . 46 744 Absorbed by Shields . | . . . . Redirected to Core 616 | . . 32 584 Core Remaining (%) 100 | 100 . . . Volleys Fired 67 | . 4 4 59 Largest 2 | . 2 2 2 Hottest 60 | . 60 60 60 Shots Fired 134 | . 8 8 118 Gun 134 | . 8 8 118 Cannon . | . . . . Launcher . | . . . . Special . | . . . . Kinetic 113 | . 4 4 105 Thermal . | . . . . Explosive . | . . . . Electromagnetic 21 | . 4 4 13 Robot Hit Streak 22 | . 3 10 22 Robot Miss Streak 2 | . 1 . 2 Penetration Max . | . . . . Secondary Targets 2 | . . 1 1 Max Gunslinging Chain 1 | . . 1 1 Shots Hit Robots 81 | . 5 7 69 Core Hits 26 | . 2 4 20 Critical Kills . | . . . . Critical Parts Destroyed . | . . . . Critical Strikes 1 | . . . 1 Destroy 1 | . . . 1 Melee Attacks . | . . . . Impact . | . . . . Slashing . | . . . . Piercing . | . . . . Sneak Attacks . | . . . . Combat Hostiles . | . . . . Follow-up Attacks . | . . . . Damage Inflicted 1010 | . 103 66 841 Guns 900 | . 58 66 776 Cannons . | . . . . Explosions 110 | . 45 . 65 Melee . | . . . . Ramming . | . . . . Kinetic 740 | . 16 24 700 Thermal 110 | . 45 . 65 Explosive . | . . . . Electromagnetic 160 | . 42 42 76 Impact . | . . . . Slashing . | . . . . Piercing . | . . . . Highest Corruption . | . . . . Average Corruption . | . . . . Corruption Purged . | . . . . Corruption Blocked . | . . . . Overload Shots . | . . . . Overflow Damage . | . . . . Projectiles . | . . . . Explosions . | . . . . Melee . | . . . . Knockbacks . | . . . . Impact . | . . . . Kinetic . | . . . . Secondary . | . . . . Self-Inflicted Damage . | . . . . Shots . | . . . . Rammed . | . . . . Targets Rammed . | . . . . Kicked . | . . . . Crushed . | . . . . Highest Temperature . | . . . . Average Temperature . | . . . . Received Heat Transfer 183 | . . 18 165 Siege Activations . | . . . . Martial Activations . | . . . . Shielding Activations . | . . . . Robots Disrupted . | . . . . Combat Hostiles . | . . . . Robots Corrupted . | . . . . Combat Hostiles . | . . . . Parts Fried . | . . . . Impact Corruptions . | . . . . Robots Melted . | . . . . Combat Hostiles . | . . . . Parts Melted . | . . . . Heat Transferred 50 | . . . 50 Parts Sabotaged . | . . . . Parts Stolen . | . . . . Parts Stripped . | . . . . Power Chain Reactions 2 | . 1 . 1 Alert | -11 -10 -10 -10 ------- Run | Yrd Mat Min Sub Maximum Alert Level . | . . . . Low Security (%) 100 | 100 100 100 . Level 1 . | . . . . Level 2 . | . . . . Level 3 . | . . . . Level 4 . | . . . . Level 5 . | . . . . High Security . | . . . . Max Security . | . . . . Peak Influence 46 | . 25 46 . Initial 5 | . . 5 . Average 6 | . 3 7 . Influence Increases 159 | . 45 94 20 Destroy 0b10 Robot/C 100 | . . 80 20 Destroy 0b10 Robot/NC 10 | . 10 . . Destroy Leader 12 | . 2 10 . Allied During Kill 4 | . . 4 . Successful Hack 17 | . 17 . . Disable Machine 15 | . 15 . . Destroy Structure 1 | . 1 . . Influence Decreases 159 | . 30 109 20 Entered New Map 10 | . . 10 . Time Decay 149 | . 30 99 20 Squads Dispatched 1 | . 1 . . Investigation 1 | . 1 . . Extermination . | . . . . Reinforcement . | . . . . Assault . | . . . . Garrison . | . . . . Intercept . | . . . . Searches Triggered . | . . . . Construction Impeded . | . . . . Haulers Reinforced . | . . . . Active Scanning Responses . | . . . . Cargo Convoy Interrupts . | . . . . Stealth | -11 -10 -10 -10 --------- Run | Yrd Mat Min Sub Distress Signals . | . . . . Communications Jammed . | . . . . Distress Signals . | . . . . Times Spotted 16 | . 3 3 10 Peak Tracking Total 3 | . 3 2 2 Tactical Retreats . | . . . . Traps | -11 -10 -10 -10 ------- Run | Yrd Mat Min Sub Traps Triggered . | . . . . Indirectly . | . . . . Trap Hack Attempts . | . . . . Triggered . | . . . . Disarmed . | . . . . Reprogrammed . | . . . . Reused . | . . . . Traps Extracted . | . . . . Installed . | . . . . Triggered . | . . . . Machines | -11 -10 -10 -10 ---------- Run | Yrd Mat Min Sub Machines Disabled 2 | . 1 . 1 Max in Single Turn 1 | . 1 . 1 Machines Repaired . | . . . . Machines Dismantled . | . . . . Machines Sabotaged . | . . . . Overloaded Fab Kills . | . . . . Hacking | -11 -10 -10 -10 --------- Run | Yrd Mat Min Sub Machines Accessed 6 | . 2 . 4 Terminals 2 | . 2 . . Fabricators . | . . . . Repair Stations . | . . . . Recycling Units . | . . . . Scanalyzers . | . . . . Garrison Access . | . . . . Total Hacks 24 | . 8 . 16 Successful 19 | . 3 . 16 Failed 5 | . 5 . . Catastrophic . | . . . . Database Lockouts . | . . . . Manual 6 | . 5 . 1 Terminals 8 | . 8 . . Fabricators . | . . . . Repair Stations . | . . . . Recycling Units . | . . . . Scanalyzers . | . . . . Garrison Access . | . . . . Terminal Hacks 18 | . 2 . 16 Record 13 | . . . 13 Robot Analysis 1 | . 1 . . Open Door 1 | . . . 1 Branch Access Points 1 | . 1 . . Proto ID Catalog 1 | . . . 1 Release Object 1 | . . . 1 Fabricator Hacks . | . . . . Repair Station Hacks . | . . . . Recycling Unit Hacks . | . . . . Scanalyzer . | . . . . Garrison Access Hacks . | . . . . Unauthorized Hacks 1 | . 1 . . Terminals 1 | . 1 . . Botnet 1 | . 1 . . Fabricators . | . . . . Repair Stations . | . . . . Recycling Units . | . . . . Scanalyzers . | . . . . Garrison Access . | . . . . Data Cores Recovered 1 | . 1 . . Used . | . . . . Hacking Detections 2 | . 2 . . Full Trace Events 1 | . 1 . . Feedback Events . | . . . . Feedback Blocked . | . . . . Robot Schematics Acquired . | . . . . Robots Built . | . . . . Authchips . | . . . . Time . | . . . . Total Robot Build Rating . | . . . . Part Schematics Acquired . | . . . . Parts Built . | . . . . Authchips . | . . . . Time . | . . . . Total Part Build Rating . | . . . . Part Studies Acquired . | . . . . Parts Repaired . | . . . . Time . | . . . . Parts Recycled . | . . . . Recycled Matter . | . . . . Retrieved Matter . | . . . . Retrieved Components . | . . . . Parts Scanalyzed . | . . . . Part Schematics Acquired . | . . . . Parts Damaged . | . . . . Bothacking | -11 -10 -10 -10 ------------ Run | Yrd Mat Min Sub Used RIF Installer . | . . . . Robots Hacked . | . . . . Non-combat . | . . . . Combat . | . . . . Robot Hacks Applied . | . . . . Relay Couplers Released . | . . . . Fabnet Peak Effective % . | . . . . Robots Rewired . | . . . . Allies Hacked . | . . . . Hacks Repelled . | . . . . Allies | -11 -10 -10 -10 -------- Run | Yrd Mat Min Sub Total Allies 2 | . . 2 . Largest Group 2 | . . 2 2 Highest-Rated Group 50 | . . 50 50 Highest-Rated Ally 31 | . . 31 31 Total Orders . | . . . . Ally Attacks 14 | . . 14 . Total Damage 254 | . . 254 . Kills 2 | . . 2 . Allies Corrupted . | . . . . Allies Melted . | . . . . Intel | -11 -10 -10 -10 ------- Run | Yrd Mat Min Sub Active Infowar (turns) . | . . . . Robot Analysis Total 1 | . 1 . . Derelict Logs Recovered 3 | . . 2 1 Drone Launches . | . . . . Drone Recoveries . | . . . . Exploration | -11 -10 -10 -10 ------------- Run | Yrd Mat Min Sub Turns Passed 1710 | 40 150 703 817 Spaces Moved 1679 | 40 164 678 797 Core 2 | 2 . . . Treads . | . . . . Legs . | . . . . Wheels 1677 | 38 164 678 797 Hover . | . . . . Flight . | . . . . Fastest Speed 50 | 50 80 80 80 Average Speed 79 | 78 80 80 80 Slowest Speed 80 | 80 80 80 80 Overloaded Moves . | . . . . Propulsion Burnouts . | . . . . Robots Hopped . | . . . . Potential Cave-ins . | . . . . Cave-ins Triggered . | . . . . Exploration Rate (%) 45 | 3 40 99 41 Regions Visited 3 Branch Regions 2 Pre-discovered Areas 3 | . . 2 1 Known Exits Taken 2 | . 1 1 . Unknown Exits Taken 1 | 1 . . . Scrap Searched 4 | . . 1 3 Spaces Dug . | . . . . Terrain Destroyed 9 | . 1 . 8 Melee . | . . . . Projectile . | . . . . AOE 9 | . 1 . 8 Terrain Rammed . | . . . . Walls Destroyed . | . . . . Machines Disabled . | . . . . Actions | -11 -10 -10 -10 --------- Run | Yrd Mat Min Sub Total 1924 | 45 173 831 875 Wait 157 | . . 150 7 Move 1676 | 39 163 677 797 Hop . | . . . . Pick Up 3 | . 1 . 2 Fast Attach 9 | 6 3 . . Attach 1 | . . . 1 Detach . | . . . . Swap 2 | . 1 . 1 Drop 2 | . 1 . 1 Fire 67 | . 4 4 59 Melee . | . . . . Ram . | . . . . Kick . | . . . . Crush . | . . . . Escape Stasis . | . . . . Rewire . | . . . . Trap . | . . . . Miscellaneous 7 | . . . 7 Route ------- -11/Scrapyard -10/Materials (discovered 2 exits: *Min x2) -10/Mines (discovered 3 exits: *Mat x2 / *Sub) -10/Subcaves (discovered 1 exit: *Mat) History --------- Turn | Location | Event 1 | -11/Scrapyard | Upgraded with Power slot (x1) 1 | -11/Scrapyard | Upgraded with Propulsion slot (x1) 1 | -11/Scrapyard | Upgraded with Utility slot (x1) 1 | -11/Scrapyard | Upgraded with Weapon slot (x1) 16 | -11/Scrapyard | Discovered new exit (range 15) 41 | -11/Scrapyard | Entered Materials 41 | -10/Materials | Discovered new exit (range 8) 147 | -10/Materials | Discovered new exit (range 13) 153 | -10/Materials | Identified exit to Mines 191 | -10/Materials | Entered Mines 218 | -10/Mines | Discovered new exit (range 11) 225 | -10/Mines | Identified exit to Materials 267 | -10/Mines | Discovered exit to Materials (range 12) 310 | -10/Mines | Build established: Mutant 380 | -10/Mines | Learned location of Zion (-6) 463 | -10/Mines | Received a Rocket Launcher from a helpful Derelict 612 | -10/Mines | Learned location of Storage (-8) 824 | -10/Mines | Discovered new exit (range 6) 827 | -10/Mines | Identified exit to Subcaves 894 | -10/Mines | Entered Subcaves 894 | -10/Subcaves | Accompanied by 2 allies 895 | -10/Subcaves | Approached by a straggling Scientist 896 | -10/Subcaves | Reached level 2 899 | -10/Subcaves | Led the pair of lost Derelicts to an unsafe place 908 | -10/Subcaves | A swath of the cavern ceiling suddenly collapsed 909 | -10/Subcaves | Discovered new exit (range 5) 910 | -10/Subcaves | Shifting Twisted Machinery released Shrapnel Trap 911 | -10/Subcaves | Shifting Twisted Machinery released Mak. Hammer 912 | -10/Subcaves | Identified exit to Materials 939 | -10/Subcaves | Lost 3 allies 943 | -10/Subcaves | A swath of the cavern ceiling suddenly collapsed 993 | -10/Subcaves | Upgraded with Utility slot (x1) 1028 | -10/Subcaves | Visited Clippyterm 1030 | -10/Subcaves | Learned location of Extension (-6) 1154 | -10/Subcaves | Visited 4L-MR0's lab 1174 | -10/Subcaves | Found Tower Shield 1212 | -10/Subcaves | Learned Materials stockpile data 1429 | -10/Subcaves | Released subatomizers from SUBCON Basin 1580 | -10/Subcaves | Core integrity fell below 50% 1594 | -10/Subcaves | Core integrity fell below 20% 1648 | -10/Subcaves | Shifting Twisted Machinery released Sub. Laser 1684 | -10/Subcaves | Ambushed by Subdwellers from Twisted Machinery 1711 | -10/Subcaves | Destroyed by RV-R5O(R) with Subdweller Machine Gun Last Messages --------------- >>Release Inventory Accessing inventory controls... Collection purity confirmed 100%... Ejecting SUBCON Basin... Delivery behind schedule, handle with care! 01429_ Released subatomizers from SUBCON Basin. 01535_ Subatomizers dissect the Disposable Heat Sink. 01591_ 3R-ZDV(R) destroyed. 01591_ Switching to secondary target: NN-E81(R). 01596_ NN-E81(R) affixes Scrap Shield Fragment to Scrap Shield. 01602_ NN-E81(R) destroyed. 01605_ Acquired 75 matter. 01606_ Acquired 10 matter. 01612_ Upgraded: Core Integrity (+100) Sub. Laser falls loose from the Twisted Machinery. 01649_ Acquired 5 matter. 01664_ Subatomizers dissect the Ion Engine. 01684_ 1K-HGS(R) emerges from the Twisted Machinery. 01698_ 1K-HGS(R) destroyed. 01701_ RV-R5O(R) suffers critical hit (Destroy). Map ----- +----------------------------------------------------+ | ??????????????????????????### ## #?????? | | ?????????????????????????## #???????????? | | ?????????????????????????# ###???????????? | | ?????????????????????????# ####??????????? | | ?????????????????????????# ##?????????? | | ?????????????????????????## #?????????? | | ??????????????????????????######### #?????????? | | ??????????????????????????????##### ##????????? | | ?????????????????????????????## ## #???###??? | | ?????????????????????????????# #??##"#??? | | ????????????????????????????## #?##""##?? | | ????????????????????????????# ### #?? | | ??????????????????????????### [""##? | | ??????????????????????????# % """ " #? | | ??????????????????????????# ####### ##""" # # | | ?????????????????????????## #?????## ## ""#%" | | ????????????????????????## ##?????## #### ""#?" | | ???????????????????????## #??????# #??##% #?? | | ???????????????????????# #?????? #???###?? | | ???????????????????????# #####?????## ##???????? | | ???????????????????????# #??????????# ????????? | | ???????????????????????# #???###????# ???????? | | ???????????????????????# #### #????## ???????? | | ???????????????????????# #?????## ??????? | | ???????????????????????# ##??????? ??????? | | ???????????????????????##@ ##??????? ?????? | | ???????????????????????## ##?????? ?????? | | ?????????????????## ## #??????# * ?????? | | ?????????? ##??????#%??????? | | ?????????? ##[ #??????????????? | | ?????????? #?#%R #?????????????? | | ??????????? ### ?? = ##?????????????? | | ??????????? ???#??? #??????????????? | | ???????????? ????????# ### ##??????????????? | | ???????????? ?????????# ??###???????????????? | | ???????????????????????? ????????????????????? | | ???????????????????????? ???????????????????? | | ????????????????????????""# ???????????????????? | | ??????????????????????? "#?###???????????????????? | | ??????????????????????? "????????????????????????? | | ??????????????????????? ?????????????????????????? | | ???????????????????????"?????????????????????????? | | ?????????????????????????????????????????????????? | | ?????????????????????????????????????????????????? | | ?????????????????????????????????????????????????? | | ?????????????????????????????????????????????????? | | ?????????????????????????????????????????????????? | | ?????????????????????????????????????????????????? | | ?????????????????????????????????????????????????? | | ?????????????????????????????????????????????????? | +----------------------------------------------------+ Best States ------------- Heat Dissipation 55 Energy Generation 15 Energy Capacity 275 Matter Stores 300 Matter Capacity 500 Sight Range 16 Terrain Scan Density 10 Armor Coverage 150 Evasion (%) 44 Offensive Hacking 10 Item Schematics ----------------- None Robot Schematics ------------------ None Fabricated ------------ Nothing Repaired ---------- Nothing Studied --------- None Alien Tech Used ----------------- None Achievements -------------- Mistaken Identity Challenges ------------ None RPGLIKE | -11 -10 -10 -10 --------- Run | Yrd Mat Min Sub Levels Raised 1 | . . . 1 XP Earned 5214 | 3000 135 979 1100 XP Spent 4460 | 2700 . . 1760 Upgrades 15 | 10 . . 5 Power Slot 1 | 1 . . . Propulsion Slot 1 | 1 . . . Utility Slot 2 | 1 . . 1 Weapon Slot 1 | 1 . . . Core Integrity 2 | . . . 2 Heat Dissipation 5 | 5 . . . Inventory Capacity 2 | 1 . . 1 Ranged Accuracy 1 | . . . 1 Protomatter Created 95 | . . . 95 Integrity Restored 102 | . . . 102 Core 79 | . . . 79 Parts 23 | . . . 23 Protomatter Decayed 61 | . . 56 5 Game ------ Seed ScrapOvertunedInterrupter Manual? 0 Play Time 00:15:24 Cumulative 741.4 hours Start 2025.10.25 @ 12:32:16 End 2025.10.25 @ 12:45:13 Sessions 1 Manual Loads 0 Difficulty Rogue Special Mode Winter2019/RPGLIKE Game No. 62 Rogue 50 Adventurer 9 Explorer 3 Win Type - Total 9 Types 4/0/0/2/0/1/1/0/0/1 Lore% 58 Gallery% 57 Achievement% 40 Wizard Run 0 Options --------- Layout 0 ASCII 0 Keyboard 0 Movement Mouse Keybinds 0 Fullscreen 2 Font 18/SmallcapsGlow Map View 76x50 Zoom Use 0% Tactical HUD 1 Map Filters NONE Filters NONE Steam 1 RUN: 24fa5dc6-2c0a-421d-b25d-7471904cd9b4